[Event "WYCC 2018 O18"]
[Site "Halkidiki"]
[Date "2018.10.28"]
[Round "9"]
[White "Mitrabha, Guha"]
[Black "Olimjonov, Sarvarbek"]
[Result "1-0"]
[ECO "A41"]
[WhiteElo "2352"]
[BlackElo "2074"]
[Annotator "NA"]
[PlyCount "107"]
[EventDate "2018.10.20"]
[EventType "swiss"]
[EventCountry "GRE"]
[SourceTitle "playchess.com"]
[Source "ChessBase"]
[SourceQuality "1"]
[TimeControl "40/5400+30:1800+30"]

1. Nf3 {[%emt 0:00:00]} d6 {[%emt 0:00:00]} 2. d4 {[%emt 0:00:12]} Bg4 {[%emt 0:00:26]} 3. c4 {[%emt 0:00:08]} Bxf3 {[%emt 0:00:22]} 4. exf3 {[%emt 0:00:08]} e6 {[%emt 0:01:19]} 5. Nc3 {[%emt 0:00:26]} d5 {[%emt 0:04:15]} 6. cxd5 {[%emt 0:02:50]} exd5 {[%emt 0:00:28]} 7. Qb3 {[%emt 0:00:07]} Qe7+ {[%emt 0:00:42]} 8. Be3 {[%emt 0:00:57]} c6 {[%emt 0:00:10]} 9. O-O-O {[%emt 0:00:06]} Qb4 {[%emt 0:01:26]} 10. Qc2 {[%emt 0:00:18]} Nd7 {[%emt 0:00:37]} 11. a3 {[%emt 0:01:32]} Qa5 {[%emt 0:01:28]} 12. Bf4 {[%emt 0:00:25]} Be7 {[%emt 0:05:42]} 13. Bd3 {[%emt 0:00:38]} a6 {[%emt 0:01:58]} 14. Kb1 {[%emt 0:01:16]} g6 {[%emt 0:06:24]} 15. Rde1 {[%emt 0:00:41]} O-O-O {[%emt 0:02:50]} 16. Na4 {[%emt 0:04:58]} Nb6 {[%emt 0:11:32]} 17. Nc5 {[%emt 0:02:59]} Bxc5 {[%emt 0:04:29]} 18. Bd2 {[%emt 0:00:56]} Qa4 {[%emt 0:05:22]} 19. Qxc5 {[%emt 0:00:02]} Nc4 {[%emt 0:00:58]} 20. Bxc4 {[%emt 0:02:55]} Qxc4 {[%emt 0:05:18]} 21. Qa7 {[%emt 0:00:57]} Qd3+ {[%emt 0:02:57]} 22. Kc1 {[%emt 0:00:06]} Qc4+ {[%emt 0:00:43]} 23. Bc3 {[%emt 0:00:28]} Kc7 {[%emt 0:01:32]} 24. Re3 {[%emt 0:00:05]} Nf6 {[%emt 0:03:05]} 25. b3 {[%emt 0:00:18]} Qb5 {[%emt 0:00:11]} 26. Bd2 {[%emt 0:05:10]} g5 {[%emt 0:08:35]} 27. a4 {[%emt 0:03:33]} Qb6 {[%emt 0:00:26]} 28. Re7+ {[%emt 0:02:02]} Rd7 {[%emt 0:00:06]} 29. Qxb6+ {[%emt 0:00:25]} Kxb6 {[%emt 0:00:08]} 30. Rhe1 {[%emt 0:01:19]} h6 {[%emt 0:12:40]} 31. Rxd7 {[%emt 0:00:06]} Nxd7 {[%emt 0:00:05]} 32. Re7 {[%emt 0:00:03]} Kc7 {[%emt 0:00:28]} 33. Rxf7 {[%emt 0:00:05]} Re8 {[%emt 0:06:44]} 34. Kd1 {[%emt 0:00:45]} b6 {[%emt 0:02:51]} 35. Rh7 {[%emt 0:01:31]} Re6 {[%emt 0:00:31]} 36. a5 {[%emt 0:03:09]} b5 {[%emt 0:01:57]} 37. Bb4 {[%emt 0:00:55]} Kc8 {[%emt 0:01:32]} 38. h3 {[%emt 0:00:36]} Kc7 {[%emt 0:00:41]} 39. Kd2 {[%emt 0:00:55]} Kc8 {[%emt 0:00:28]} 40. Kd3 {[%emt 0:00:00]} Kd8 {[%emt 0:00:00]} 41. Bd2 {[%emt 0:01:43]} c5 {[%emt 0:07:13]} 42. dxc5 {[%emt 0:00:11]} Nxc5+ {[%emt 0:00:11]} 43. Kd4 {[%emt 0:00:12]} Nxb3+ {[%emt 0:01:02]} 44. Kxd5 {[%emt 0:00:05]} Rg6 {[%emt 0:01:02]} 45. Rxh6 {[%emt 0:06:16]} Rxh6 {[%emt 0:02:46]} 46. Bxg5+ {[%emt 0:00:01]} Kd7 {[%emt 0:00:43]} 47. Bxh6 {[%emt 0:00:05]} Nxa5 {[%emt 0:00:04]} 48. h4 {[%emt 0:00:13]} Nb3 {[%emt 0:08:04]} 49. h5 {[%emt 0:00:18]} a5 {[%emt 0:02:03]} 50. Bf4 {[%emt 0:01:48]} Ke7 {[%emt 0:00:13]} 51. g4 {[%emt 0:00:13]} a4 {[%emt 0:00:31]} 52. g5 {[%emt 0:00:05]} Kf7 {[%emt 0:00:20]} 53. Be5 {[%emt 0:00:21]} Kg8 {[%emt 0:01:17]} 54. g6 {[%emt 0:00:06]} 1-0

[Event "WYCC 2018 O18"]
[Site "Halkidiki"]
[Date "2018.10.28"]
[Round "9"]
[White "Ranaldi, Lucas"]
[Black "Liang, Albert"]
[Result "1-0"]
[ECO "A20"]
[WhiteElo "2335"]
[BlackElo "2042"]
[Annotator "NA"]
[PlyCount "55"]
[EventDate "2018.10.20"]
[EventType "swiss"]
[EventCountry "GRE"]
[SourceTitle "playchess.com"]
[Source "ChessBase"]
[SourceQuality "1"]
[TimeControl "40/5400+30:1800+30"]

1. c4 {[%emt 0:00:00]} e5 {[%emt 0:00:00]} 2. g3 {[%emt 0:00:00]} Nf6 {[%emt 0:00:00]} 3. Bg2 {[%emt 0:00:00]} Nc6 {[%emt 0:00:00]} 4. Nc3 {[%emt 0:00:36]} Bc5 {[%emt 0:00:47]} 5. a3 {[%emt 0:00:17]} a6 {[%emt 0:01:07]} 6. e3 {[%emt 0:00:13]} Ba7 {[%emt 0:00:58]} 7. Nge2 {[%emt 0:00:33]} O-O {[%emt 0:01:37]} 8. d4 {[%emt 0:02:11]} d6 {[%emt 0:02:58]} 9. h3 {[%emt 0:02:41]} Ne7 {[%emt 0:04:31]} 10. O-O {[%emt 0:02:14]} c6 {[%emt 0:03:26]} 11. b3 {[%emt 0:13:12]} Re8 {[%emt 0:04:05]} 12. e4 {[%emt 0:18:58]} h6 {[%emt 0:14:51]} 13. Kh2 {[%emt 0:01:34]} Bd7 {[%emt 0:10:37]} 14. f4 {[%emt 0:03:49]} exd4 {[%emt 0:05:33]} 15. Nxd4 {[%emt 0:00:18]} Ng6 {[%emt 0:01:49]} 16. Qd3 {[%emt 0:04:06]} Qc7 {[%emt 0:03:51]} 17. Bb2 {[%emt 0:01:38]} Rad8 {[%emt 0:05:34]} 18. Rad1 {[%emt 0:00:57]} b5 {[%emt 0:03:36]} 19. cxb5 {[%emt 0:15:19]} axb5 {[%emt 0:01:20]} 20. b4 {[%emt 0:00:48]} Be6 {[%emt 0:02:43]} 21. Nxe6 {[%emt 0:10:55]} fxe6 {[%emt 0:00:42]} 22. e5 {[%emt 0:02:11]} Nxf4 {[%emt 0:07:50]} 23. exd6 {[%emt 0:14:43]} Nxd3 {[%emt 0:00:18]} 24. dxc7 {[%emt 0:00:02]} Rd4 {[%emt 0:01:29]} 25. Nxb5 {[%emt 0:01:27]} Nxb2 {[%emt 0:05:33]} 26. Nxd4 {[%emt 0:03:14]} Nxd1 {[%emt 0:05:39]} 27. Nxc6 {[%emt 0:00:06]} Ne3 {[%emt 0:06:39]} 28. Nxa7 {[%emt 0:00:27]} 1-0

[Event "WYCC 2018 O18"]
[Site "Halkidiki"]
[Date "2018.10.28"]
[Round "9"]
[White "Roshka, Yevgeniy"]
[Black "Lindbol, Aleksander"]
[Result "1-0"]
[ECO "B12"]
[WhiteElo "2328"]
[BlackElo "2166"]
[Annotator "NA"]
[PlyCount "143"]
[EventDate "2018.10.20"]
[EventType "swiss"]
[EventCountry "GRE"]
[SourceTitle "playchess.com"]
[Source "ChessBase"]
[SourceQuality "1"]
[TimeControl "40/5400+30:1800+30"]

1. e4 {[%emt 0:00:00]} c6 {[%emt 0:00:00]} 2. d4 {[%emt 0:00:28]} d5 {[%emt 0:00:00]} 3. e5 {[%emt 0:00:05]} Bf5 {[%emt 0:00:08]} 4. h4 {[%emt 0:00:03]} h5 {[%emt 0:00:23]} 5. Bd3 {[%emt 0:00:04]} Bxd3 {[%emt 0:00:48]} 6. Qxd3 {[%emt 0:00:02]} e6 {[%emt 0:00:35]} 7. Bg5 {[%emt 0:00:24]} Qb6 {[%emt 0:00:41]} 8. Nd2 {[%emt 0:00:19]} Nd7 {[%emt 0:03:35]} 9. Ne2 {[%emt 0:02:59]} Ne7 {[%emt 0:02:17]} 10. c4 {[%emt 0:20:17]} f6 {[%emt 0:11:15]} 11. exf6 {[%emt 0:01:29]} gxf6 {[%emt 0:00:09]} 12. Be3 {[%emt 0:00:56]} O-O-O {[%emt 0:22:35]} 13. Nf4 {[%emt 0:06:46]} e5 {[%emt 0:07:23]} 14. dxe5 {[%emt 0:00:04]} Nxe5 {[%emt 0:04:50]} 15. Bxb6 {[%emt 0:00:07]} Nxd3+ {[%emt 0:00:05]} 16. Nxd3 {[%emt 0:00:01]} axb6 $17 {[%emt 0:00:09]} 17. O-O-O {[%emt 0:04:42]} Bh6 {[%emt 0:03:06]} 18. cxd5 {[%emt 0:01:16]} Rxd5 {[%emt 0:08:06]} 19. Kc2 {[%emt 0:00:30]} Bxd2 {[%emt 0:09:18]} 20. Rxd2 {[%emt 0:00:20]} Rhd8 {[%emt 0:00:37]} 21. Rhd1 {[%emt 0:00:53]} Nf5 {[%emt 0:01:09]} 22. Nf4 {[%emt 0:04:00]} Rc5+ {[%emt 0:04:28]} 23. Kb1 {[%emt 0:00:45]} Rxd2 {[%emt 0:01:00]} 24. Rxd2 {[%emt 0:00:02]} Re5 {[%emt 0:00:47]} 25. g3 {[%emt 0:04:21]} c5 {[%emt 0:00:41]} 26. Re2 {[%emt 0:01:05]} Ng7 {[%emt 0:02:09]} 27. Rxe5 {[%emt 0:05:42]} fxe5 {[%emt 0:00:06]} 28. Ng6 {[%emt 0:09:28]} e4 {[%emt 0:02:44]} 29. Ne7+ {[%emt 0:00:24]} Kd7 {[%emt 0:06:04]} 30. Nd5 {[%emt 0:00:04]} Ke6 {[%emt 0:01:12]} 31. Nxb6 {[%emt 0:00:27]} Nf5 {[%emt 0:01:18]} 32. Nc4 {[%emt 0:15:41]} b5 {[%emt 0:00:35]} 33. Na3 {[%emt 0:02:49]} e3 {[%emt 0:01:42]} 34. fxe3 {[%emt 0:00:01]} b4 {[%emt 0:01:27]} 35. Nc2 {[%emt 0:00:45]} Nxg3 {[%emt 0:00:14]} 36. Ne1 {[%emt 0:00:10]} Nf5 {[%emt 0:01:41]} 37. Ng2 {[%emt 0:00:00]} Ke5 {[%emt 0:00:16]} 38. a4 {[%emt 0:03:12]} bxa3 {[%emt 0:02:36]} 39. bxa3 {[%emt 0:00:01]} Ke4 {[%emt 0:00:24]} 40. a4 {[%emt 0:00:00]} Nxe3 {[%emt 0:00:00]} 41. Nxe3 {[%emt 0:02:20]} Kxe3 {[%emt 0:01:54]} 42. a5 {[%emt 0:00:32]} Kd2 {[%emt 0:00:23]} 43. a6 {[%emt 0:00:19]} c4 {[%emt 0:00:05]} 44. a7 {[%emt 0:00:02]} c3 {[%emt 0:00:05]} 45. a8=Q {[%emt 0:00:03]} c2+ {[%emt 0:00:04]} 46. Ka2 {[%emt 0:00:02]} c1=Q {[%emt 0:00:09]} 47. Qd5+ {[%emt 0:00:19]} Kc3 {[%emt 0:01:09]} 48. Qc5+ {[%emt 0:00:18]} Kd2 {[%emt 0:00:32]} 49. Qxh5 {[%emt 0:02:03]} Qc4+ {[%emt 0:15:38]} 50. Ka3 {[%emt 0:00:02]} Ke1 {[%emt 0:01:14]} 51. Qe5+ {[%emt 0:01:46]} Kf2 {[%emt 0:00:09]} 52. h5 {[%emt 0:00:08]} Kg1 {[%emt 0:00:17]} 53. Qg5+ {[%emt 0:01:39]} Kh1 {[%emt 0:00:11]} 54. h6 {[%emt 0:00:55]} Qc3+ {[%emt 0:00:29]} 55. Ka4 {[%emt 0:00:09]} Qc4+ {[%emt 0:00:09]} 56. Ka5 {[%emt 0:00:03]} Qc7+ {[%emt 0:00:17]} 57. Kb5 {[%emt 0:00:21]} Qb7+ {[%emt 0:00:14]} 58. Kc4 {[%emt 0:00:59]} Qc7+ {[%emt 0:00:38]} 59. Kd3 {[%emt 0:00:31]} Qd6+ {[%emt 0:00:42]} 60. Ke2 {[%emt 0:02:55]} Qa6+ {[%emt 0:02:32]} 61. Kf2 {[%emt 0:00:32]} Qa2+ {[%emt 0:01:40]} 62. Kf3 {[%emt 0:00:10]} Qb3+ {[%emt 0:01:16]} 63. Qe3 {[%emt 0:00:12]} Qf7+ {[%emt 0:00:35]} 64. Ke2 {[%emt 0:04:06]} Qa2+ {[%emt 0:01:18]} 65. Ke1 {[%emt 0:02:01]} Qb1+ {[%emt 0:00:54]} 66. Kd2 {[%emt 0:04:07]} Qb2+ {[%emt 0:00:34]} 67. Kd1 {[%emt 0:00:27]} Qb1+ {[%emt 0:01:55]} 68. Qc1 {[%emt 0:00:29]} Qe4 {[%emt 0:00:21]} 69. Kd2+ {[%emt 0:01:22]} Kg2 {[%emt 0:00:06]} 70. Qc2 {[%emt 0:00:35]} Qd4+ {[%emt 0:01:56]} 71. Kc1+ {[%emt 0:01:00]} Kh3 {[%emt 0:00:32]} 72. h7 {[%emt 0:00:08]} 1-0

[Event "WYCC 2018 O18"]
[Site "Halkidiki"]
[Date "2018.10.28"]
[Round "9"]
[White "Szabo, Marton Mihaly"]
[Black "Gonzalez Carrillo, Javier Omar"]
[Result "1/2-1/2"]
[ECO "B20"]
[WhiteElo "2307"]
[BlackElo "2031"]
[Annotator "NA"]
[PlyCount "80"]
[EventDate "2018.10.20"]
[EventType "swiss"]
[EventCountry "GRE"]
[SourceTitle "playchess.com"]
[Source "ChessBase"]
[SourceQuality "1"]
[TimeControl "40/5400+30:1800+30"]

1. e4 {[%emt 0:00:00]} c5 {[%emt 0:00:00]} 2. c4 {[%emt 0:00:26]} Nc6 {[%emt 0:01:55]} 3. Nc3 {[%emt 0:00:11]} g6 {[%emt 0:00:06]} 4. g3 {[%emt 0:00:07]} Bg7 {[%emt 0:00:11]} 5. Bg2 {[%emt 0:00:07]} e6 {[%emt 0:00:32]} 6. Nge2 {[%emt 0:00:05]} Nge7 {[%emt 0:00:06]} 7. O-O {[%emt 0:00:11]} O-O {[%emt 0:01:15]} 8. d3 {[%emt 0:00:04]} d6 {[%emt 0:02:10]} 9. Rb1 {[%emt 0:00:13]} Qd7 {[%emt 0:00:26]} 10. a3 {[%emt 0:00:58]} b6 {[%emt 0:00:08]} 11. Be3 {[%emt 0:01:53]} Bb7 {[%emt 0:15:00]} 12. b4 {[%emt 0:06:34]} Nd4 {[%emt 0:02:04]} 13. Qd2 {[%emt 0:01:09]} f5 {[%emt 0:07:22]} 14. f4 {[%emt 0:04:00]} e5 {[%emt 0:12:43]} 15. h3 {[%emt 0:21:20]} Rae8 {[%emt 0:13:19]} 16. Kh2 {[%emt 0:03:43]} fxe4 {[%emt 0:11:10]} 17. dxe4 {[%emt 0:01:48]} Nec6 {[%emt 0:02:18]} 18. Nd5 {[%emt 0:30:02]} Nxe2 {[%emt 0:00:52]} 19. Qxe2 {[%emt 0:00:06]} Nd4 {[%emt 0:01:02]} 20. Bxd4 {[%emt 0:00:46]} cxd4 21. fxe5 {[%emt 0:04:02]} Bxd5 {[%emt 0:01:18]} 22. cxd5 {[%emt 0:01:11]} Bxe5 {[%emt 0:01:15]} 23. Rbc1 {[%emt 0:06:55]} h5 {[%emt 0:13:10]} 24. h4 {[%emt 0:00:22]} Qe7 {[%emt 0:00:08]} 25. Kh3 {[%emt 0:00:11]} Rc8 {[%emt 0:02:56]} 26. Rxf8+ {[%emt 0:02:27]} Qxf8 {[%emt 0:00:30]} 27. Rf1 {[%emt 0:02:38]} Qe7 {[%emt 0:00:09]} 28. Qb5 {[%emt 0:00:31]} Rc3 {[%emt 0:05:13]} 29. Rf3 {[%emt 0:00:26]} Kg7 {[%emt 0:00:34]} 30. a4 {[%emt 0:02:25]} Kh6 {[%emt 0:00:32]} 31. Qf1 {[%emt 0:05:56]} Qd7+ {[%emt 0:01:21]} 32. Kh2 {[%emt 0:00:17]} Qg4 {[%emt 0:00:21]} 33. Rxc3 {[%emt 0:02:29]} dxc3 {[%emt 0:00:51]} 34. Qf8+ {[%emt 0:00:24]} Bg7 {[%emt 0:02:15]} 35. Qf1 {[%emt 0:01:11]} Qc8 {[%emt 0:02:51]} 36. Bh3 {[%emt 0:00:49]} Qc7 {[%emt 0:00:50]} 37. Qc1+ {[%emt 0:00:14]} Kh7 {[%emt 0:00:10]} 38. Bf1 {[%emt 0:00:04]} Be5 {[%emt 0:01:09]} 39. Bd3 {[%emt 0:00:25]} Qf7 {[%emt 0:00:33]} 40. Kg2 {[%emt 0:00:00]} Qf6 {[%emt 0:00:00]} 1/2-1/2

[Event "WYCC 2018 O18"]
[Site "Halkidiki"]
[Date "2018.10.28"]
[Round "9"]
[White "Risting, Eivind Olav"]
[Black "Bronstein, Or"]
[Result "1/2-1/2"]
[ECO "D85"]
[WhiteElo "2299"]
[BlackElo "2385"]
[Annotator "NA"]
[PlyCount "103"]
[EventDate "2018.10.20"]
[EventType "swiss"]
[EventCountry "GRE"]
[SourceTitle "playchess.com"]
[Source "ChessBase"]
[SourceQuality "1"]
[TimeControl "40/5400+30:1800+30"]

1. d4 {[%emt 0:00:00]} Nf6 {[%emt 0:00:00]} 2. c4 {[%emt 0:00:00]} g6 {[%emt 0:00:00]} 3. Nc3 {[%emt 0:00:00]} d5 {[%emt 0:00:00]} 4. cxd5 {[%emt 0:00:38]} Nxd5 {[%emt 0:00:00]} 5. e4 {[%emt 0:00:09]} Nxc3 {[%emt 0:00:00]} 6. bxc3 {[%emt 0:00:05]} Bg7 {[%emt 0:00:00]} 7. Bg5 {[%emt 0:00:51]} c5 {[%emt 0:00:45]} 8. Rc1 {[%emt 0:01:35]} O-O {[%emt 0:00:55]} 9. Nf3 {[%emt 0:03:06]} b6 {[%emt 0:36:01]} 10. Be2 {[%emt 0:05:22]} Qd7 {[%emt 0:05:27]} 11. O-O {[%emt 0:10:17]} Ba6 $14 {[%emt 0:00:32]} 12. d5 {[%emt 0:03:23]} Bxe2 {[%emt 0:00:42]} 13. Qxe2 {[%emt 0:00:13]} e6 {[%emt 0:00:20]} 14. c4 {[%emt 0:05:53]} Re8 {[%emt 0:04:41]} 15. Qd2 {[%emt 0:14:17]} exd5 {[%emt 0:03:18]} 16. exd5 {[%emt 0:00:22]} Qf5 {[%emt 0:01:28]} 17. Rfe1 {[%emt 0:01:34]} Nd7 {[%emt 0:00:31]} 18. Qf4 {[%emt 0:17:55]} Qxf4 {[%emt 0:07:42]} 19. Bxf4 {[%emt 0:00:06]} Bb2 {[%emt 0:00:06]} 20. Rc2 {[%emt 0:12:15]} Rxe1+ {[%emt 0:02:19]} 21. Nxe1 {[%emt 0:00:02]} Re8 {[%emt 0:10:34]} 22. Kf1 {[%emt 0:00:08]} Bd4 {[%emt 0:06:52]} 23. Re2 {[%emt 0:01:48]} Rxe2 {[%emt 0:00:07]} 24. Kxe2 {[%emt 0:00:02]} Be5 {[%emt 0:00:33]} 25. Kf3 {[%emt 0:03:20]} Kf8 {[%emt 0:00:38]} 26. Nd3 {[%emt 0:00:32]} Bxf4 {[%emt 0:00:06]} 27. Kxf4 {[%emt 0:00:12]} f6 {[%emt 0:06:55]} 28. g4 {[%emt 0:00:51]} Ke7 {[%emt 0:00:11]} 29. g5 {[%emt 0:08:44]} a6 {[%emt 0:00:30]} 30. a4 {[%emt 0:00:13]} Kd6 {[%emt 0:04:14]} 31. gxf6 {[%emt 0:01:22]} Nxf6 {[%emt 0:00:38]} 32. Kg5 {[%emt 0:01:49]} Ng8 {[%emt 0:04:40]} 33. f4 {[%emt 0:02:44]} Ne7 {[%emt 0:01:14]} 34. Kh6 {[%emt 0:01:19]} b5 {[%emt 0:00:06]} 35. axb5 {[%emt 0:01:15]} axb5 {[%emt 0:00:01]} 36. cxb5 {[%emt 0:00:34]} c4 {[%emt 0:02:29]} 37. b6 {[%emt 0:02:53]} Nxd5 {[%emt 0:00:27]} 38. b7 {[%emt 0:00:23]} Kc7 {[%emt 0:00:06]} 39. Nc1 {[%emt 0:00:28]} Nxf4 {[%emt 0:01:07]} 40. Kxh7 {[%emt 0:00:00]} Kxb7 {[%emt 0:00:00]} 41. Kh6 {[%emt 0:00:51]} Kc6 {[%emt 0:03:13]} 42. Kg5 {[%emt 0:00:26]} Nd3 {[%emt 0:00:17]} 43. Ne2 {[%emt 0:01:12]} Ne5 {[%emt 0:00:35]} 44. Kf6 {[%emt 0:02:23]} Kd5 {[%emt 0:07:20]} 45. Nc3+ {[%emt 0:00:51]} Kd4 {[%emt 0:00:02]} 46. Nb5+ {[%emt 0:00:32]} Kc5 {[%emt 0:00:07]} 47. Na3 {[%emt 0:01:44]} Ng4+ {[%emt 0:00:36]} 48. Kg5 {[%emt 0:00:41]} Ne5 {[%emt 0:00:28]} 49. Nxc4 {[%emt 0:01:19]} Kxc4 {[%emt 0:00:06]} 50. h4 {[%emt 0:00:05]} Kd5 {[%emt 0:00:20]} 51. h5 {[%emt 0:00:06]} gxh5 {[%emt 0:00:06]} 52. Kxh5 {[%emt 0:00:05]} 1/2-1/2

[Event "WYCC 2018 O18"]
[Site "Halkidiki"]
[Date "2018.10.28"]
[Round "9"]
[White "Kandil, Adham"]
[Black "Dallemagne, Maximilien"]
[Result "1-0"]
[ECO "C18"]
[WhiteElo "2292"]
[BlackElo "2094"]
[Annotator "NA"]
[PlyCount "101"]
[EventDate "2018.10.20"]
[EventType "swiss"]
[EventCountry "GRE"]
[SourceTitle "playchess.com"]
[Source "ChessBase"]
[SourceQuality "1"]
[TimeControl "40/5400+30:1800+30"]

1. e4 {[%emt 0:01:46] Kritz,L} e6 {[%emt 0:00:00]} 2. d4 {[%emt 0:00:15]} d5 {[%emt 0:00:00]} 3. Nc3 {[%emt 0:00:17]} Bb4 {[%emt 0:00:00]} 4. e5 {[%emt 0:00:08]} c5 {[%emt 0:00:00]} 5. a3 {[%emt 0:00:10]} Bxc3+ {[%emt 0:00:00]} 6. bxc3 {[%emt 0:00:07]} Qa5 {[%emt 0:00:07]} 7. Bd2 {[%emt 0:00:21]} Qa4 {[%emt 0:00:08]} 8. Qg4 {[%emt 0:00:31]} Kf8 {[%emt 0:00:01]} 9. Qd1 {[%emt 0:00:08] C18: French: 3 Nc3 Bb4: Main line: 7 h4 and 7 Qg4} Nc6 {[%emt 0:03:18]} 10. Nf3 {[%emt 0:00:33]} Nge7 {[%emt 0:01:06]} 11. Qb1 {[%emt 0:00:42]} c4 {[%emt 0:02:36]} 12. Qc1 $146 {[%emt 0:01:24]} ({Predecessor:} 12. g3 h6 13. Nh4 Ke8 14. Bh3 Rg8 15. Qd1 Ng6 16. Ng2 Nce7 {½-½ (43) Nisipeanu,L (2668)-Ivanchuk,V (2763) Bucharest 2012 CBM 152 [Kritz,L]}) 12... Bd7 {[%emt 0:04:12]} 13. h4 {[%emt 0:00:17]} Ke8 {[%emt 0:28:11]} 14. h5 {[%emt 0:00:35]} h6 {[%emt 0:00:28]} 15. g3 {[%emt 0:02:33]} Kd8 {[%emt 0:00:44]} 16. Bh3 {[%emt 0:00:55]} Kc7 {[%emt 0:02:04]} 17. Nh4 {[%emt 0:00:43]} Rag8 {[%emt 0:05:23]} 18. Ng2 {[%emt 0:01:41]} Qa5 {[%emt 0:04:37]} 19. Nf4 $11 {[%emt 0:02:04]} Kb8 {[%emt 0:04:02]} 20. a4 {[%emt 0:02:21]} Qd8 {[%emt 0:06:04]} 21. Be3 {[%emt 0:01:01]} Nc8 {[%emt 0:05:27]} 22. Kd2 {[%emt 0:01:25]} Qe7 {[%emt 0:04:57]} 23. Qb2 {[%emt 0:01:32]} g5 {[%emt 0:03:58]} 24. hxg6 {[%emt 0:03:22]} fxg6 {[%emt 0:00:48]} 25. Rhb1 {[%emt 0:07:48]} Nd8 {[%emt 0:00:41]} 26. Qb4 {[%emt 0:01:44]} Kc7 {[%emt 0:02:32]} 27. Bg2 {[%emt 0:09:18]} Bc6 {[%emt 0:03:16]} 28. Re1 {[%emt 0:02:23]} h5 {[%emt 0:00:28]} 29. Bh3 {[%emt 0:05:02]} Bd7 {[%emt 0:00:12]} 30. Nxd5+ {[%emt 0:01:06]} exd5 {[%emt 0:00:34]} 31. e6 {[%emt 0:01:01]} Bc6 {[%emt 0:04:33]} 32. Bf4+ {[%emt 0:01:33]} Nd6 {[%emt 0:00:01]} 33. Qa5+ {[%emt 0:00:20]} Kb8 {[%emt 0:02:05]} 34. Qc5 {[%emt 0:00:07]} Kc7 {[%emt 0:00:44]} 35. Qa5+ {[%emt 0:08:32]} Kb8 {[%emt 0:00:06]} 36. Qb4 {[%emt 0:00:33]} Kc7 {[%emt 0:00:07]} 37. Be5 {[%emt 0:00:44]} g5 {[%emt 0:05:42]} 38. f4 {[%emt 0:03:36]} g4 {[%emt 0:04:21]} 39. Qa5+ {[%emt 0:00:16]} Kb8 {[%emt 0:00:33]} 40. Qc5 {[%emt 0:00:00]} Kc7 {[%emt 0:00:00]} 41. f5 {[%emt 0:01:25]} b6 {[%emt 0:10:03]} 42. Qb4 {[%emt 0:06:23]} gxh3 {[%emt 0:02:57]} 43. a5 {[%emt 0:00:09]} N8b7 {[%emt 0:07:51]} 44. axb6+ {[%emt 0:01:44]} axb6 {[%emt 0:00:03]} 45. Ra6 {[%emt 0:01:32]} b5 {[%emt 0:06:57]} 46. f6 {[%emt 0:01:15]} Qh7 {[%emt 0:05:32]} 47. Ra7 {[%emt 0:01:37]} Qh6+ {[%emt 0:03:30]} 48. Ke2 {[%emt 0:00:37]} Kc8 {[%emt 0:01:29]} 49. Ra8+ {[%emt 0:00:35]} Kc7 {[%emt 0:00:08]} 50. Bxd6+ {[%emt 0:00:03]} Nxd6 {[%emt 0:00:35]} 51. Qa5+ {[%emt 0:00:04]} 1-0

[Event "WYCC 2018 O18"]
[Site "Halkidiki"]
[Date "2018.10.28"]
[Round "9"]
[White "Martinez Fernandez, Adrian"]
[Black "Talmaci, Alexandru"]
[Result "1-0"]
[ECO "C05"]
[WhiteElo "2277"]
[BlackElo "2009"]
[Annotator "NA"]
[PlyCount "67"]
[EventDate "2018.10.20"]
[EventType "swiss"]
[EventCountry "GRE"]
[SourceTitle "playchess.com"]
[Source "ChessBase"]
[SourceQuality "1"]
[TimeControl "40/5400+30:1800+30"]

1. e4 {[%emt 0:00:00]} e6 {[%emt 0:00:00]} 2. d4 {[%emt 0:00:00]} d5 {[%emt 0:00:00]} 3. Nd2 {[%emt 0:00:00]} Nf6 {[%emt 0:00:02]} 4. e5 {[%emt 0:00:00]} Nfd7 {[%emt 0:00:04]} 5. Bd3 {[%emt 0:00:00]} c5 {[%emt 0:00:05]} 6. c3 {[%emt 0:00:01]} Nc6 {[%emt 0:00:19]} 7. Ngf3 {[%emt 0:00:06]} Qb6 {[%emt 0:06:51]} 8. O-O {[%emt 0:01:05]} cxd4 {[%emt 0:03:06]} 9. cxd4 {[%emt 0:00:06]} Nxd4 {[%emt 0:02:50]} 10. Nxd4 {[%emt 0:00:05]} Qxd4 {[%emt 0:00:03]} 11. Nf3 {[%emt 0:00:08]} Qb6 {[%emt 0:05:53]} 12. Qa4 {[%emt 0:02:32]} Qb4 {[%emt 0:10:53]} 13. Qc2 {[%emt 0:00:07]} Qc5 {[%emt 0:13:12]} 14. Qe2 $11 {[%emt 0:05:44]} Be7 {[%emt 0:10:06]} 15. Be3 {[%emt 0:06:24]} Qa5 {[%emt 0:02:41]} 16. a3 {[%emt 0:15:23]} Qd8 {[%emt 0:07:07]} 17. Qc2 {[%emt 0:05:08]} h6 {[%emt 0:02:20]} 18. Qa4 {[%emt 0:04:24]} g5 {[%emt 0:13:16]} 19. Rac1 {[%emt 0:04:37]} Kf8 {[%emt 0:01:39]} 20. Bd4 {[%emt 0:07:48]} Kg7 {[%emt 0:04:44]} 21. Nd2 {[%emt 0:03:16]} Nf8 {[%emt 0:02:02]} 22. f4 {[%emt 0:02:11]} gxf4 {[%emt 0:00:25]} 23. Rxf4 {[%emt 0:00:15]} Ng6 {[%emt 0:00:51]} 24. Rf2 {[%emt 0:05:16]} Bd7 {[%emt 0:00:45]} 25. Qb3 {[%emt 0:00:01]} b6 {[%emt 0:00:35]} 26. Rcf1 {[%emt 0:00:02]} Be8 {[%emt 0:01:07]} 27. Qd1 {[%emt 0:10:37]} Rc8 {[%emt 0:02:13]} 28. g3 {[%emt 0:04:41]} Bc5 {[%emt 0:02:37]} 29. Bxc5 {[%emt 0:00:13]} Rxc5 {[%emt 0:00:41]} 30. Bxg6 {[%emt 0:00:23]} fxg6 {[%emt 0:00:18]} 31. Qg4 {[%emt 0:00:07]} Qc8 {[%emt 0:03:27]} 32. Nb3 {[%emt 0:06:34]} Rc4 {[%emt 0:01:26]} 33. Nd4 {[%emt 0:01:44]} Kh7 {[%emt 0:01:22]} 34. Rf7+ {[%emt 0:01:31]} 1-0